fUSD/lending_fUSD_20260202
["ID","MTS","AMOUNT","RATE_DAILY","PERIOD"]
[404307562,1770052246979,-150.0,0.00017753,2]
[404307563,1770052246990,-500.0,0.00017753,2]
[404307564,1770052247001,-500.0,0.00017753,2]
[404307565,1770052247010,-150.0,0.00017753,2]
[404307566,1770052247019,-500.0,0.00017753,2]
[404307567,1770052247029,-466.0,0.00017753,2]
[404307568,1770052247038,-500.0,0.00017753,2]
[404307569,1770052247047,-389.0,0.00017762,2]
[404307570,1770052247056,-118665.12837977,0.000178,2]
[404307571,1770052247065,-4700.0,0.000178,6]
[404307572,1770052247074,-500.0,0.00017808,2]
[404307573,1770052247082,-150.0,0.00017808,2]
[404307574,1770052247092,-500.0,0.00017808,2]
[404307575,1770052247101,-500.0,0.00017808,2]
[404307576,1770052247110,-864.0,0.00017808,2]
[404307577,1770052247119,-150.0,0.00017808,2]
[404307578,1770052247128,-242.0,0.00017808,2]
[404307579,1770052247137,-500.0,0.00017808,2]
[404307580,1770052247146,-500.0,0.00017808,2]
[404307581,1770052247155,-254.1991344,0.00017808,2]
[404307582,1770052247164,-1794.0,0.00017808,2]
[404307583,1770052247175,-150.0,0.00017808,2]
[404307584,1770052247184,-500.0,0.00017808,2]
[404307585,1770052247194,-257.91969894,0.00017808,2]
[404307586,1770052247204,-150.0,0.00017808,2]
[404307587,1770052247214,-500.0,0.00017808,2]
[404307588,1770052247223,-203.40923612,0.00017808,2]
[404307589,1770052247232,-150.0,0.00017808,2]
[404307590,1770052247241,-500.0,0.00017808,2]
[404307591,1770052247250,-466.0,0.00017808,2]
[404307592,1770052247259,-500.0,0.00017808,2]
[404307593,1770052247268,-1000.0,0.00017808,2]
[404307594,1770052247278,-2000.0,0.0001782,2]
[404307595,1770052247287,-2000.0,0.0001782,2]
[404307596,1770052247296,-1000.0,0.00017849,2]
[404307597,1770052247305,-200.0,0.00017856,2]
[404307598,1770052247315,-1000.0,0.00017856,2]
[404307599,1770052247324,-886.486,0.00017856,2]
[404307600,1770052247334,-389.0,0.00017861,2]
[404307601,1770052247343,-500.0,0.00017862,2]
[404307602,1770052247352,-282.97813088,0.00017862,2]
[404307603,1770052247362,-500.0,0.00017862,2]
[404307604,1770052247371,-500.0,0.00017862,2]
[404307605,1770052247380,-864.0,0.00017862,2]
[404307606,1770052247389,-150.0,0.00017862,2]
[404307607,1770052247398,-500.0,0.00017862,2]
[404307608,1770052247407,-179.99262105,0.00017862,2]
[404307609,1770052247418,-1794.0,0.00017862,2]
[404307610,1770052247427,-150.0,0.00017862,2]
[404307611,1770052247437,-500.0,0.00017862,2]
[404307612,1770052247446,-150.0,0.00017862,2]
[404307613,1770052247457,-500.0,0.00017862,2]
[404307614,1770052247467,-150.0,0.00017862,2]
[404307615,1770052247475,-500.0,0.00017862,2]
[404307616,1770052247485,-466.0,0.00017862,2]
[404307617,1770052247494,-500.0,0.00017862,2]
[404307618,1770052247503,-389.0,0.0001788,2]
[404307619,1770052247514,-400.40460426,0.0001789,2]
[404307620,1770052247524,-1947.60261128,0.000179,2]
[404307621,1770052247533,-500.0,0.000179,2]
[404307622,1770052247544,-4700.0,0.000179,6]
[404307623,1770052247554,-34965.56083801,0.000179,2]
[404307624,1770052247564,-1437.00742468,0.000179,2]
[404307625,1770052247573,-836.83007605,0.000179,2]
[404307626,1770052247582,-257.09827192,0.000179,3]
[404307627,1770052247592,-24162.98599796,0.000179,2]
[404307628,1770052247601,-500.0,0.00017917,2]
[404307629,1770052247611,-500.0,0.00017917,2]
[404307630,1770052247620,-500.0,0.00017917,2]
[404307631,1770052247630,-864.0,0.00017917,2]
[404307632,1770052247638,-150.0,0.00017917,2]
[404307633,1770052247648,-500.0,0.00017917,2]
[404307634,1770052247660,-1794.0,0.00017917,2]
[404307635,1770052247668,-289.36328116,0.00017917,2]
[404307636,1770052247678,-500.0,0.00017917,2]
[404307637,1770052247686,-291.47561802,0.00017917,2]
[404307638,1770052247696,-500.0,0.00017917,2]
[404307639,1770052247706,-150.0,0.00017917,2]
[404307640,1770052247715,-466.0,0.00017917,2]
[404307641,1770052247724,-500.0,0.00017917,2]
[404307642,1770052247734,-500.0,0.00017917,2]
[404307643,1770052247743,-389.0,0.00017942,2]
[404307644,1770052247752,-595.4,0.00017958,2]
[404307645,1770052247761,-500.0,0.00017958,2]
[404307646,1770052247770,-165.62377034,0.00017958,2]
[404307647,1770052247779,-1081.79,0.00017958,2]
[404307648,1770052247788,-1017.42,0.00017958,2]
[404307649,1770052247797,-513.79,0.00017958,2]
[404307650,1770052247806,-520.18,0.00017958,2]
[404307651,1770052247815,-640.79,0.00017958,2]
[404307652,1770052247825,-500.0,0.00017958,2]
[404307653,1770052247834,-500.0,0.00017972,2]
[404307654,1770052247844,-284.33132432,0.00017972,2]
[404307655,1770052247853,-500.0,0.00017972,2]
[404307656,1770052247862,-864.0,0.00017972,2]
[404307657,1770052247871,-250.0,0.00017972,2]
[404307658,1770052247882,-500.0,0.00017972,2]
[404307659,1770052247892,-1794.0,0.00017972,2]
[404307660,1770052247901,-500.0,0.00017972,2]
[404307661,1770052247911,-500.0,0.00017972,2]
[404307662,1770052247920,-206.44868677,0.00017972,2]
[404307663,1770052247930,-466.0,0.00017972,2]
[404307664,1770052247940,-500.0,0.00017972,2]
[404307665,1770052247950,-233.11495411,0.00017972,2]
[404307666,1770052247959,-194.72792766,0.00017989,2]
[404307667,1770052247968,-233.51889341,0.00017989,2]
[404307668,1770052247979,-1592.87721993,0.00017989,2]
[404307669,1770052247988,-5888.0,0.0001799,2]
[404307670,1770052247998,-400.40460426,0.0001799,2]
[404307671,1770052248008,-300.0,0.00017999,2]
[404307672,1770052248018,-265.58840157,0.00017999,2]
[404307673,1770052248030,-666.0,0.00017999,2]
[404307674,1770052248040,-151.0,0.00017999,2]
[404307675,1770052248050,-300.0,0.00017999,2]
[404307676,1770052248062,-595.4,0.00017999,2]
[404307677,1770052248072,-595.4,0.00017999,2]
[404307678,1770052248081,-595.4,0.00017999,2]
[404307679,1770052248091,-595.4,0.00017999,2]
[404307680,1770052248100,-595.4,0.00017999,2]
[404307681,1770052248109,-595.4,0.00017999,2]
[404307682,1770052248120,-595.59595269,0.00017999,2]
[404307683,1770052248130,-500.0,0.00017999,2]
[404307684,1770052248140,-500.0,0.00017999,2]
[404307685,1770052248149,-500.0,0.00017999,2]
[404307686,1770052248158,-509.63945804,0.00017999,2]
[404307687,1770052248168,-300.0,0.00017999,2]
[404307688,1770052248177,-1081.79,0.00017999,2]
[404307689,1770052248187,-1081.79,0.00017999,2]
[404307690,1770052248197,-1081.79,0.00017999,2]
[404307691,1770052248206,-1081.79,0.00017999,2]
[404307692,1770052248216,-1081.79,0.00017999,2]
[404307693,1770052248227,-1081.79,0.00017999,2]
[404307694,1770052248237,-1081.88314617,0.00017999,2]
[404307695,1770052248247,-300.0,0.00017999,2]
[404307696,1770052248257,-1017.42,0.00017999,2]
[404307697,1770052248267,-1017.42,0.00017999,2]
[404307698,1770052248277,-1017.42,0.00017999,2]
[404307699,1770052248287,-1017.42,0.00017999,2]
[404307700,1770052248296,-1017.42,0.00017999,2]
[404307701,1770052248306,-1017.42,0.00017999,2]
[404307702,1770052248316,-1017.42001855,0.00017999,2]
[404307703,1770052248325,-513.79,0.00017999,2]
[404307704,1770052248335,-513.79,0.00017999,2]
[404307705,1770052248345,-513.79,0.00017999,2]
[404307706,1770052248355,-513.79,0.00017999,2]
[404307707,1770052248364,-513.79,0.00017999,2]
[404307708,1770052248374,-513.79,0.00017999,2]
[404307709,1770052248383,-513.91503942,0.00017999,2]
[404307710,1770052248393,-300.0,0.00017999,2]
[404307711,1770052248402,-666.0,0.00017999,2]
[404307712,1770052248412,-520.18,0.00017999,2]
[404307713,1770052248422,-520.18,0.00017999,2]
[404307714,1770052248431,-520.18,0.00017999,2]
[404307715,1770052248441,-520.18,0.00017999,2]
[404307716,1770052248451,-520.18,0.00017999,2]
[404307717,1770052248461,-520.18,0.00017999,2]
[404307718,1770052248471,-520.24526317,0.00017999,2]
[404307719,1770052248480,-640.79,0.00017999,2]
[404307720,1770052248490,-640.79,0.00017999,2]
[404307721,1770052248499,-640.79,0.00017999,2]
[404307722,1770052248509,-640.79,0.00017999,2]
[404307723,1770052248518,-640.79,0.00017999,2]
[404307724,1770052248528,-640.79,0.00017999,2]
[404307725,1770052248538,-640.9535499,0.00017999,2]
[404307726,1770052248547,-500.0,0.00017999,2]
[404307727,1770052248559,-561.99539873,0.00017999,2]
[404307728,1770052248568,-2383925.01230461,0.00018,2]
[404307729,1770052248882,-153523.62319699,0.00018,2]
[404307730,1770052248894,-5972.68705834,0.00018,2]
[404307731,1770052248905,-19445.09498981,0.00018,2]
[404307732,1770052248924,-52285.6,0.00018,2]
[404307733,1770052248936,-2412.63,0.00018,2]
[404307734,1770052249100,-1246.97137256,0.00013269,2]
[404307735,1770052249110,-151.0,0.00013698,2]
[404307736,1770052249120,-342.49435941,0.00013698,2]
[404307737,1770052249130,-720306.12485271,0.00018,2]
[404307738,1770052249141,-8413.18195188,0.00018,2]
[404307739,1770052249152,-803.2,0.00018,2]
[404307740,1770052249165,-395.275,0.00018,2]
[404307741,1770052249177,-625.17518359,0.00018,2]
[404307742,1770052249188,-1247.15000003,0.00018,2]
[404307743,1770052249226,-1292635.42868113,0.00018,2]
[404307744,1770052249236,-1191.99317303,0.00018,2]
[404307745,1770052249246,-525.23948875,0.00018,2]
[404307746,1770052249255,-150.0,0.00018,7]
[404307747,1770052249265,-1000.0,0.00018,2]
[404307748,1770052249274,-1000.0,0.00018,2]
[404307749,1770052249284,-1000.0,0.00018,2]
[404307750,1770052249294,-1000.0,0.00018,2]
[404307751,1770052249303,-1000.0,0.00018,2]
[404307752,1770052249313,-1000.0,0.00018,2]
[404307753,1770052249323,-1000.0,0.00018,2]
[404307754,1770052249333,-1000.0,0.00018,2]
[404307755,1770052249343,-1000.0,0.00018,2]
[404307756,1770052249354,-1000.0,0.00018,2]
[404307757,1770052249363,-1000.0,0.00018,2]
[404307758,1770052249374,-1000.0,0.00018,2]
[404307759,1770052249384,-1000.0,0.00018,2]
[404307760,1770052249394,-1000.0,0.00018,2]
[404307761,1770052249405,-1000.0,0.00018,2]
[404307762,1770052249415,-1000.0,0.00018,2]
[404307763,1770052249424,-1000.0,0.00018,2]
[404307764,1770052249434,-1000.0,0.00018,2]
[404307765,1770052249443,-1000.0,0.00018,2]
[404307766,1770052249452,-1000.0,0.00018,2]
[404307767,1770052249462,-1000.0,0.00018,2]
[404307768,1770052249471,-1000.0,0.00018,2]
[404307769,1770052249481,-1000.0,0.00018,2]
[404307770,1770052249490,-1141.04007611,0.00018,2]
[404307771,1770052249499,-2938004.15004998,0.00018,2]
[404307772,1770052249519,-4037.11263363,0.00018,2]
[404307773,1770052250185,-1246.97137256,0.00014195,2]
[404307774,1770052250194,-1257.0,0.00014353,2]
[404307775,1770052250204,-230.0,0.00014381,2]
[404307776,1770052250213,-1745.0,0.0001441,2]
[404307777,1770052250223,-3467.34163622,0.00018,2]
[404307778,1770052250234,-851.54217517,0.00018,2]
[404307779,1770052250744,-296.92009,0.00014439,2]
[404307780,1770052250767,-776.07991,0.00014439,2]
[404307781,1770052250777,-154.69,0.00016449,3]
[404307782,1770052250787,-309.38,0.00017819,3]
[404307783,1770052250796,-4697.30191822,0.00018,2]
[404307784,1770052250807,-561.54357013,0.00018,2]
[404307785,1770052250820,-1308.02644993,0.00018,2]
[404307786,1770052279937,1573.66307649,0.00011416,2]
[404307787,1770052279959,5000.01,0.00011416,2]
[404307788,1770052279980,5000.01,0.00011416,2]
[404307789,1770052280000,5000.01,0.00011416,2]
[404307790,1770052280021,4766.34142351,0.00011416,2]
[404307791,1770052381963,300.0,0.00011415,2]
[404307792,1770052395639,1437.0074247,0.00011316,2]
[404307793,1770052402338,2100.0,0.000106,3]
[404307794,1770052404449,4200.0,0.000107,3]
[404307795,1770052406558,6400.0,0.000108,3]
[404307796,1770052408644,8500.0,0.000109,3]
[404307797,1770052423742,163.27680884,0.00011316,2]
[404307798,1770052465448,241.97,0.00014,3]
[404307799,1770052466535,241.97,0.000114,2]
[404307800,1770052466949,172.63,0.000135,3]
[404307801,1770052467689,150.0,0.000114,2]
[404307802,1770052472482,164.54508129,0.00011415,2]
[404307803,1770052472517,186.15795245,0.00011415,2]
[404307804,1770052501531,1200.0,0.00011415,2]
[404307805,1770052502425,150.0,0.00011415,2]
[404307806,1770052502695,300.0,0.00011415,2]
[404307807,1770052505177,256.38071899,0.00011415,2]
[404307808,1770052514029,450.67201373,0.00011415,2]
[404307809,1770052514055,49.32798627,0.00011415,2]
[404307810,1770052514109,500.0,0.00011415,2]
[404307811,1770052514150,500.0,0.00011415,2]
[404307812,1770052514187,500.0,0.00011415,2]
[404307813,1770052514233,500.0,0.00011415,2]
[404307814,1770052514270,500.0,0.00011415,2]
[404307815,1770052514307,500.0,0.00011415,2]
[404307816,1770052514344,500.0,0.00011415,2]
[404307817,1770052514385,239.65853093,0.00011415,2]
[404307818,1770052514433,500.0,0.00011415,2]
[404307819,1770052514479,500.0,0.00011415,2]
[404307820,1770052514525,211.0234828,0.00011415,2]
[404307821,1770052514551,288.9765172,0.00011415,2]
[404307822,1770052514589,500.0,0.00011415,2]
[404307823,1770052514631,500.0,0.00011415,2]
[404307824,1770052514678,500.0,0.00011415,2]
[404307825,1770052514717,500.0,0.00011415,2]
[404307826,1770052514766,500.0,0.00011415,2]
[404307827,1770052514810,500.0,0.00011415,2]
[404307828,1770052514870,500.0,0.00011415,2]
[404307829,1770052514931,500.0,0.00011415,2]
[404307830,1770052514980,500.0,0.00011415,2]
[404307831,1770052515029,211.0334828,0.00011415,2]
[404307832,1770052515058,288.9665172,0.00011415,2]
[404307833,1770052515098,500.0,0.00011415,2]
[404307834,1770052515143,500.0,0.00011415,2]
[404307835,1770052515184,500.0,0.00011415,2]
[404307836,1770052515224,500.0,0.00011415,2]
[404307837,1770052515272,500.0,0.00011415,2]
[404307838,1770052515323,500.0,0.00011415,2]
[404307839,1770052515367,500.0,0.00011415,2]
[404307840,1770052515416,500.0,0.00011415,2]
[404307841,1770052515457,500.0,0.00011415,2]
[404307842,1770052515502,211.0434828,0.00011415,2]
[404307843,1770052515528,288.9565172,0.00011415,2]
[404307844,1770052515614,500.0,0.00011415,2]
[404307845,1770052515668,500.0,0.00011415,2]
[404307846,1770052515722,500.0,0.00011415,2]
[404307847,1770052515774,500.0,0.00011415,2]
[404307848,1770052515894,958.0049498,0.00011316,2]
[404307849,1770052525593,1753.048533,0.00011316,2]
[404307850,1770052525616,5000.01,0.00011316,2]
[404307851,1770052525638,5000.01,0.00011316,2]
[404307852,1770052525659,5000.01,0.00011316,2]
[404307853,1770052525680,5000.01,0.00011316,2]
[404307854,1770052525701,5000.01,0.00011316,2]
[404307855,1770052525722,4898.60253233,0.00011316,2]
[404307856,1770052526713,101.40746767,0.00011415,2]
[404307857,1770052526739,398.59253233,0.00011415,2]
[404307858,1770052526794,500.0,0.00011415,2]
[404307859,1770052527416,500.0,0.00011415,2]
[404307860,1770052527456,500.0,0.00011415,2]
[404307861,1770052527497,500.0,0.00011415,2]
[404307862,1770052527539,500.0,0.00011415,2]
[404307863,1770052527597,500.0,0.00011415,2]
[404307864,1770052527804,500.0,0.00011415,2]
[404307865,1770052528129,500.0,0.00011415,2]
[404307866,1770052528177,500.0,0.00011415,2]
[404307867,1770052528368,101.41746767,0.00011415,2]
[404307868,1770052528393,398.58253233,0.00011415,2]
[404307869,1770052528491,500.0,0.00011415,2]
[404307870,1770052528811,500.0,0.00011415,2]
[404307871,1770052528862,500.0,0.00011415,2]
[404307872,1770052528911,500.0,0.00011415,2]
[404307873,1770052528948,500.0,0.00011415,2]
[404307874,1770052528989,500.0,0.00011415,2]
[404307875,1770052529112,1601.42746767,0.00011316,2]
[404307876,1770052529134,5000.01,0.00011316,2]
[404307877,1770052539950,-233.66857649,0.00011316,2]
[404307878,1770052540058,-5000.01,0.00011316,2]
[404307879,1770052540214,-5000.01,0.00011316,2]
[404307880,1770052540319,-5000.01,0.00011316,2]
[404307881,1770052540440,-154.07834014,0.00011316,2]
[404307882,1770052540478,-239.65853094,0.00011415,2]
[404307883,1770052540510,-500.0,0.00011415,2]
[404307884,1770052540541,-500.0,0.00011415,2]
[404307885,1770052540573,-500.0,0.00011415,2]
[404307886,1770052594761,881.40511335,0.00011316,2]
[404307887,1770052604003,639.28782477,0.00011316,2]
[404307888,1770052604025,242.11728858,0.00011316,2]
[404307889,1770052621683,300.0,0.00011415,2]
[404307890,1770052636058,638.66996652,0.00011316,2]
[404307892,1770052681888,150.0,0.00011415,2]
[404307893,1770052685930,179.46650329,0.00011415,2]
[404307894,1770052696652,351.160071,0.00011316,2]
[404307895,1770052699208,500.0,0.00011415,2]
[404307896,1770052699250,500.0,0.00011415,2]
[404307897,1770052699290,500.0,0.00011415,2]
[404307898,1770052699330,500.0,0.00011415,2]
[404307899,1770052699371,500.0,0.00011415,2]
[404307900,1770052699414,500.0,0.00011415,2]
[404307901,1770052699466,138.59617061,0.00011415,2]
[404307902,1770052699493,361.40382939,0.00011415,2]
[404307903,1770052699534,258.27317525,0.00011415,2]
[404307904,1770052699572,500.0,0.00011415,2]
[404307905,1770052699614,500.0,0.00011415,2]
[404307906,1770052728557,658.27112465,0.00011406,2]
[404307907,1770052738023,230.59232744,0.00011415,2]
[404307908,1770052743831,500.0,0.00011415,2]
[404307909,1770052746883,198.39137328,0.00011316,2]
[404307910,1770052747232,520.09823186,0.0001425,5]
[404307911,1770052749566,500.0,0.00011415,2]
[404307912,1770052749625,500.0,0.00011415,2]
[404307913,1770052749706,500.0,0.00011415,2]
[404307914,1770052749826,256.64063744,0.00011415,2]
[404307915,1770052756446,36.43753255,0.00011316,2]
[404307916,1770052756466,389.34244513,0.00011316,2]
[404307917,1770052759217,661.05383503,0.00011316,2]
[404307918,1770052759948,661.05383503,0.00011316,2]
[404307919,1770052760342,161.4146292,0.00011415,2]
[404307920,1770052761747,500.0,0.00011415,2]
[404307921,1770052793644,500.0,0.00011415,2]
[404307922,1770052801794,1200.0,0.00011415,2]
[404307923,1770052802130,300.0,0.00011415,2]
[404307924,1770052810548,266.93640284,0.00011406,2]
[404307925,1770052823616,360.20885277,0.000114,2]
[404307926,1770052823643,62.08114723,0.000114,2]
[404307927,1770052825405,500.0,0.00011415,2]
[404307928,1770052845795,-7490.2273,0.00011416,2]
[404307929,1770052845821,-751509.7727,0.00011416,2]
[404307930,1770052850659,1879.9549,0.00011316,2]
[404307932,1770052855671,500.0,0.00011415,2]
[404307933,1770052861728,300.0,0.00011415,2]
[404307934,1770052862090,150.0,0.00011415,2]
[404307935,1770052863806,1607.97395277,0.00011415,2]
[404307936,1770052863827,2565.77275212,0.00011415,2]
[404307937,1770052863912,649.36910503,0.00011415,2]
[404307938,1770052864627,1273.29157306,0.00011415,2]
[404307939,1770052889025,500.0,0.00011415,2]
[404307940,1770052893092,11.57656979,0.00011188,2]
[404307941,1770052893118,2707.22743021,0.00011188,2]
[404307942,1770052893457,219.446,0.00011188,2]
[404307943,1770052909003,495.79037629,0.00011316,2]
[404307944,1770052909504,495.79037629,0.00011316,2]
[404307945,1770052915947,1081.75581721,0.00011316,2]
[404307946,1770052915969,5000.01,0.00011316,2]
[404307947,1770052915990,5000.01,0.00011316,2]
[404307948,1770052916011,5000.01,0.00011316,2]
[404307949,1770052916033,3708.50712866,0.00011316,2]
[404307950,1770052916782,-430000.0,0.00011416,2]
[404307951,1770052919550,500.0,0.00011415,2]
[404307952,1770052932022,500.0,0.00011416,2]
[404307953,1770052933431,291.50287134,0.00011416,2]
[404307954,1770052933501,208.49712866,0.00011416,2]
[404307955,1770052933725,500.0,0.00011416,2]
[404307956,1770052934010,500.0,0.00011416,2]
[404307957,1770052934508,500.0,0.00011416,2]
[404307958,1770052935104,500.0,0.00011416,2]
[404307959,1770052935695,500.0,0.00011416,2]
[404307960,1770052936342,500.0,0.00011416,2]
[404307961,1770052936650,151.0,0.00011416,2]
[404307962,1770052936940,500.0,0.00011416,2]
[404307963,1770052937262,151.0,0.00011416,2]
[404307964,1770052937560,500.0,0.00011416,2]
[404307965,1770052937734,200.0,0.00011416,2]
[404307966,1770052937855,151.0,0.00011416,2]
[404307967,1770052938153,138.51287134,0.00011416,2]
[404307968,1770052938174,361.48712866,0.00011416,2]
[404307969,1770052938492,151.0,0.00011416,2]
[404307970,1770052939173,151.0,0.00011416,2]
[404307971,1770052939750,151.0,0.00011416,2]
[404307972,1770052940365,151.0,0.00011416,2]
[404307973,1770052940980,151.0,0.00011416,2]
[404307974,1770052941572,151.0,0.00011416,2]
[404307975,1770052942202,151.0,0.00011416,2]
[404307976,1770052942820,151.0,0.00011416,2]
[404307977,1770052945691,-500.0,0.00011416,2]
[404307978,1770052945717,-200.0,0.00011416,2]
[404307979,1770052945745,-500.0,0.00011416,2]
[404307980,1770052946455,-500.0,0.00011416,2]
[404307981,1770052946605,-3509.83993322,0.00011416,2]
[404307982,1770052946646,-5000.01,0.00011416,2]
[404307983,1770052946687,-5000.01,0.00011416,2]
[404307984,1770052946700,-5000.01,0.00011416,2]
[404307985,1770052946750,-500.0,0.00011416,2]
[404307986,1770052946790,-4500.01,0.00011416,2]
[404307987,1770052946820,-500.0,0.00011416,2]
[404307988,1770052946843,-4000.01,0.00011416,2]
[404307989,1770052946866,-5000.01,0.00011416,2]
[404307990,1770052948757,-500.0,0.00011416,2]
[404307991,1770052948782,-500.0,0.00011416,2]
[404307992,1770052948809,-500.0,0.00011416,2]
[404307993,1770052948867,-2000.01,0.00011416,2]
[404307994,1770052948908,-5000.01,0.00011416,2]
[404307995,1770052948976,-5000.01,0.00011416,2]
[404307996,1770052951853,-500.0,0.00011416,2]
[404307997,1770052951884,-510.17022997,0.00011416,2]
[404307998,1770052965557,2979.66954006,0.00011316,2]
[404307999,1770052965578,5000.01,0.00011316,2]
[404308000,1770052965598,2683.01235994,0.00011316,2]
[404308001,1770052966316,-51000.0,0.00011416,2]
[404308002,1770052968230,500.0,0.00011416,2]
[404308003,1770052981865,300.0,0.00011415,2]
[404308004,1770053014376,-163000.0,0.00011316,2]
[404308005,1770053037276,5000.01,0.00011216,2]
[404308006,1770053037298,5000.01,0.00011216,2]
[404308007,1770053037321,10000.01,0.00011216,2]
[404308008,1770053037344,5000.01,0.00011216,2]
[404308009,1770053037366,10000.01,0.00011216,2]
[404308010,1770053037388,1531.80625178,0.00011216,2]
[404308011,1770053041529,150.0,0.00011315,2]
[404308012,1770053041567,300.0,0.00011315,2]
[404308013,1770053042635,300.0,0.00011315,2]
[404308014,1770053060074,920.76651104,0.00011216,2]
[404308015,1770053073383,345.39513918,0.00011216,2]
[404308016,1770053099480,802.39905497,0.00011216,2]
[404308017,1770053099528,500.0,0.00011315,2]
[404308018,1770053099745,500.0,0.00011315,2]
[404308019,1770053099796,229.64844621,0.00011315,2]
[404308020,1770053101292,802.39905497,0.00011216,2]
[404308021,1770053101685,300.0,0.00011315,2]
[404308022,1770053101720,300.0,0.00011315,2]
[404308023,1770053101754,1200.0,0.00011315,2]
[404308024,1770053101792,300.0,0.00011315,2]
[404308025,1770053105560,500.0,0.00011315,2]
[404308026,1770053105628,500.0,0.00011315,2]
[404308027,1770053105710,500.0,0.00011315,2]
[404308028,1770053105833,300.0,0.00011315,2]
[404308029,1770053106117,500.0,0.00011315,2]
[404308030,1770053106494,500.0,0.00011315,2]
[404308031,1770053106652,175.82731752,0.00011315,2]
[404308033,1770053119932,3700.0,0.00011315,2]
[404308034,1770053128697,1607.0921009,0.00011216,2]
[404308035,1770053160185,343.88268804,0.00011216,2]
[404308037,1770053221815,150.0,0.00011315,2]
[404308038,1770053222715,300.0,0.00011315,2]
[404308039,1770053233330,1300.0,0.000106,3]
[404308040,1770053235411,2600.0,0.000107,3]
[404308041,1770053237500,4000.0,0.000108,3]
[404308042,1770053239620,5300.0,0.000109,3]
[404308043,1770053240253,500.0,0.00011315,2]
[404308044,1770053240299,423.20789354,0.00011315,2]
[404308045,1770053240323,76.79210646,0.00011315,2]
[404308046,1770053240371,500.0,0.00011315,2]
[404308047,1770053240424,500.0,0.00011315,2]
[404308048,1770053240473,297.58273176,0.00011315,2]
[404308049,1770053241707,6700.0,0.000139,5]
[404308050,1770053246562,601.79929128,0.00011216,2]
[404308051,1770053248918,1071.39473394,0.00011216,2]
[404308052,1770053250107,601.79929128,0.00011216,2]
[404308054,1770053265557,7213.9644562,0.00013,15]
[404308055,1770053268650,499.99999999,0.00011315,2]
[404308056,1770053275102,360.75391234,0.00011315,2]
[404308057,1770053275200,500.0,0.00011315,2]
[404308058,1770053297373,500.0,0.00011315,2]
[404308059,1770053307094,4489.88793295,0.00011216,2]
[404308060,1770053307116,10000.01,0.00011216,2]
[404308061,1770053307138,10000.01,0.00011216,2]
[404308062,1770053307162,3179.96134552,0.00011216,2]
[404308063,1770053308712,309.14,0.000113,2]
[404308064,1770053309096,2282.17452654,0.0001421,7]
[404308065,1770053333767,500.0,0.00011315,2]
[404308066,1770053341751,300.0,0.00011315,2]